[Event "EWCCC Online Final 2020"]
[Site "Online"]
[Date "2020.12.21"]
[Round "2.3"]
[White "Salimova, Nurgyul"]
[Black "Gara, Ticia"]
[Result "0-1"]
[ECO "D02"]
[WhiteElo "2397"]
[BlackElo "2383"]
[Annotator "NA"]
[PlyCount "92"]
[EventDate "2020.12.19"]
[EventType "team-tourn"]
[EventCountry "NET"]
[SourceTitle "playchess.com"]
[Source "ChessBase"]
[SourceQuality "1"]
[TimeControl "900+5"]

1. d4 {[%emt 0:00:00]} Nf6 {[%emt 0:00:04]} 2. Nf3 {[%emt 0:00:05]} e6 {[%emt 0:00:11]} 3. g3 {[%emt 0:00:17]} c5 {[%emt 0:00:05]} 4. Bg2 {[%emt 0:00:10]} d5 {[%emt 0:00:29]} 5. O-O {[%emt 0:00:38]} cxd4 {[%emt 0:00:10]} 6. Nxd4 {[%emt 0:00:12]} e5 {[%emt 0:00:04]} 7. Nb3 {[%emt 0:00:09]} Be6 {[%emt 0:00:22]} 8. Nc3 {[%emt 0:00:47]} Be7 {[%emt 0:01:42]} 9. Bg5 {[%emt 0:00:19]} Nbd7 {[%emt 0:00:04]} 10. f4 {[%emt 0:01:26]} exf4 {[%emt 0:00:41]} 11. gxf4 {[%emt 0:00:42]} g6 {[%emt 0:02:16]} 12. Kh1 {[%emt 0:03:30]} h6 {[%emt 0:01:51]} 13. Bh4 {[%emt 0:00:03]} Ng4 {[%emt 0:00:06]} 14. Bg3 {[%emt 0:01:18]} O-O {[%emt 0:00:33]} 15. Nxd5 {[%emt 0:01:18]} Bxd5 {[%emt 0:00:23]} 16. Qxd5 {[%emt 0:00:01]} Ne3 {[%emt 0:00:20]} 17. Qxb7 {[%emt 0:00:02]} Nxf1 {[%emt 0:00:19]} 18. Rxf1 {[%emt 0:00:02]} Nb6 {[%emt 0:01:07]} 19. f5 {[%emt 0:00:13]} Rc8 {[%emt 0:00:21]} 20. Qe4 {[%emt 0:00:25]} Rc4 {[%emt 0:00:15]} 21. Qf3 {[%emt 0:01:40]} Rxc2 {[%emt 0:00:12]} 22. f6 {[%emt 0:00:22]} Bxf6 {[%emt 0:01:06]} 23. Qxf6 {[%emt 0:00:05]} Qxf6 {[%emt 0:00:02]} 24. Rxf6 {[%emt 0:00:01]} Rxb2 {[%emt 0:00:01]} 25. Bf3 {[%emt 0:00:45]} Rxa2 {[%emt 0:00:05]} 26. Nc5 {[%emt 0:00:40]} Nc4 {[%emt 0:00:33]} 27. Bd5 {[%emt 0:00:35]} Ra1+ {[%emt 0:00:06]} 28. Kg2 {[%emt 0:00:15]} Ne3+ {[%emt 0:00:02]} 29. Kh3 {[%emt 0:00:03]} Nxd5 {[%emt 0:00:02]} 30. Rd6 {[%emt 0:00:02]} Ne3 {[%emt 0:00:09]} 31. Nd7 {[%emt 0:00:05]} Rc8 {[%emt 0:00:22]} 32. Rd3 {[%emt 0:00:09]} Rd1 {[%emt 0:00:32]} 33. Nf6+ {[%emt 0:00:19]} Kg7 {[%emt 0:00:01]} 34. Rxe3 {[%emt 0:00:21]} Kxf6 {[%emt 0:00:03]} 35. Be5+ {[%emt 0:00:08]} Kf5 {[%emt 0:00:04]} 36. Bg7 {[%emt 0:00:12]} g5 {[%emt 0:00:27]} 37. Re7 {[%emt 0:00:19]} Kg6 {[%emt 0:00:06]} 38. Be5 {[%emt 0:00:06]} Rd5 {[%emt 0:00:29]} 39. Bg3 {[%emt 0:00:14]} a5 {[%emt 0:00:05]} 40. Ra7 {[%emt 0:00:02]} Re8 {[%emt 0:00:04]} 41. Ra6+ {[%emt 0:00:11]} Re6 {[%emt 0:00:02]} 42. Ra8 {[%emt 0:00:01]} Rxe2 {[%emt 0:00:03]} 43. Rg8+ {[%emt 0:00:04]} Kh5 {[%emt 0:00:06]} 44. Rg7 {[%emt 0:00:11]} f5 {[%emt 0:00:04]} 45. Bc7 {[%emt 0:00:06]} Rd3+ {[%emt 0:00:06]} 46. Bg3 {[%emt 0:00:05]} g4+ {[%emt 0:00:02]} 0-1

[Event "EWCCC Online Final 2020"]
[Site "Online"]
[Date "2020.12.21"]
[Round "2.4"]
[White "Badelka, Olga"]
[Black "Nandhidhaa, P V"]
[Result "0-1"]
[ECO "A25"]
[WhiteElo "2440"]
[BlackElo "2365"]
[Annotator "NA"]
[PlyCount "81"]
[EventDate "2020.12.19"]
[EventType "team-tourn"]
[EventCountry "NET"]
[SourceTitle "playchess.com"]
[Source "ChessBase"]
[SourceQuality "1"]
[TimeControl "900+5"]

1. c4 {[%emt 0:00:00]} e5 {[%emt 0:00:03]} 2. g3 {[%emt 0:00:03]} Nc6 {[%emt 0:00:02]} 3. Bg2 {[%emt 0:00:02]} f5 {[%emt 0:00:02]} 4. d3 {[%emt 0:00:04]} Nf6 {[%emt 0:00:03]} 5. Nc3 {[%emt 0:00:02]} Bc5 {[%emt 0:00:11]} 6. Nf3 {[%emt 0:00:24]} O-O {[%emt 0:00:12]} 7. O-O {[%emt 0:00:14]} d6 {[%emt 0:00:04]} 8. e3 {[%emt 0:00:19]} a6 {[%emt 0:00:26]} 9. a3 {[%emt 0:00:20]} Ba7 {[%emt 0:00:24]} 10. b4 {[%emt 0:00:10]} Ne7 {[%emt 0:00:14]} 11. d4 {[%emt 0:00:18]} e4 {[%emt 0:00:44]} 12. Ne1 {[%emt 0:00:09]} c6 {[%emt 0:00:07]} 13. d5 {[%emt 0:03:42]} cxd5 {[%emt 0:00:22]} 14. cxd5 {[%emt 0:00:08]} Ng6 {[%emt 0:00:48]} 15. f3 {[%emt 0:00:29]} Ne5 {[%emt 0:00:26]} 16. f4 {[%emt 0:01:07]} Nc4 {[%emt 0:02:17]} 17. Nc2 {[%emt 0:00:07]} b5 {[%emt 0:00:17]} 18. Nd4 {[%emt 0:02:22]} Ng4 {[%emt 0:00:16]} 19. Re1 {[%emt 0:00:33]} Qf6 {[%emt 0:00:09]} 20. Nce2 {[%emt 0:03:46]} Ncxe3 {[%emt 0:01:06]} 21. Bxe3 {[%emt 0:00:02]} Nxe3 {[%emt 0:00:06]} 22. Qd2 {[%emt 0:00:01]} Nc4 {[%emt 0:00:16]} 23. Qc3 {[%emt 0:00:01]} Bb7 {[%emt 0:00:36]} 24. Kh1 {[%emt 0:00:21]} Bxd5 {[%emt 0:00:03]} 25. Rad1 {[%emt 0:00:05]} Rac8 {[%emt 0:00:18]} 26. Nxb5 {[%emt 0:00:41]} axb5 {[%emt 0:00:26]} 27. Qxf6 {[%emt 0:00:07]} Rxf6 {[%emt 0:00:03]} 28. Rxd5 {[%emt 0:00:02]} Ne3 {[%emt 0:00:41]} 29. Rxb5 {[%emt 0:00:11]} d5 {[%emt 0:00:03]} 30. Rb7 {[%emt 0:00:09]} Rf7 {[%emt 0:00:09]} 31. Rxf7 {[%emt 0:01:00]} Kxf7 {[%emt 0:00:03]} 32. Rc1 {[%emt 0:00:05]} Rxc1+ {[%emt 0:00:26]} 33. Nxc1 {[%emt 0:00:02]} d4 {[%emt 0:00:02]} 34. Nb3 {[%emt 0:00:10]} d3 {[%emt 0:00:17]} 35. Kg1 {[%emt 0:00:27]} Nc2+ {[%emt 0:01:18]} 36. Kf1 {[%emt 0:00:03]} e3 {[%emt 0:00:19]} 37. Bf3 {[%emt 0:00:07]} Nxa3 {[%emt 0:00:20]} 38. Na5 {[%emt 0:00:09]} Nc2 {[%emt 0:00:30]} 39. Nc6 {[%emt 0:00:04]} Nd4 {[%emt 0:00:56]} 40. Ne5+ {[%emt 0:00:06]} Ke7 {[%emt 0:00:15]} 41. Bh1 {[%emt 0:00:06]} 0-1

[Event "EWCCC Online Final 2020"]
[Site "Online"]
[Date "2020.12.21"]
[Round "2.5"]
[White "Goryachkina, Aleksandra"]
[Black "Muzychuk, Anna"]
[Result "1/2-1/2"]
[ECO "D78"]
[WhiteElo "2592"]
[BlackElo "2535"]
[Annotator "ChessBase"]
[PlyCount "72"]
[EventDate "2020.12.19"]
[EventType "team-tourn"]
[EventCountry "NET"]
[SourceTitle "playchess.com"]
[Source "ChessBase"]
[SourceQuality "1"]
[TimeControl "900+5"]

1. d4 {[%emt 0:00:00]} Nf6 {[%emt 0:00:05]} 2. c4 {[%emt 0:00:03]} g6 {[%emt 0:00:03]} 3. Nf3 {[%emt 0:00:02]} Bg7 {[%emt 0:00:07]} 4. g3 {[%emt 0:00:01]} O-O {[%emt 0:00:04]} 5. Bg2 {[%emt 0:00:02]} c6 {[%emt 0:00:05]} 6. O-O {[%emt 0:00:05]} d5 {[%emt 0:00:02]} 7. Qb3 {[%emt 0:00:07]} Qb6 {[%emt 0:00:04]} 8. Nc3 {[%emt 0:00:04]} Rd8 {[%emt 0:00:03]} 9. Na4 {[%emt 0:00:08]} Qxb3 {[%emt 0:00:40]} 10. axb3 {[%emt 0:00:02]} Na6 {[%emt 0:00:17]} 11. Bf4 {[%emt 0:00:03]} Bf5 {[%emt 0:00:50]} 12. Rfc1 {[%emt 0:00:27]} h6 {[%emt 0:00:41]} 13. Be5 {[%emt 0:00:42]} g5 {[%emt 0:01:31]} 14. Nc3 {[%emt 0:01:13]} Ne4 {[%emt 0:00:48]} 15. Bxg7 {[%emt 0:00:30]} Kxg7 {[%emt 0:00:02]} 16. Ra4 {[%emt 0:01:12]} e6 {[%emt 0:03:08]} 17. e3 {[%emt 0:00:38]} Nc7 {[%emt 0:01:50]} 18. Nxe4 {[%emt 0:01:07]} Bxe4 {[%emt 0:00:03]} 19. Nd2 {[%emt 0:00:24]} Bxg2 {[%emt 0:00:28]} 20. Kxg2 {[%emt 0:00:01]} a6 {[%emt 0:00:30]} 21. Nf3 {[%emt 0:00:18]} Ne8 {[%emt 0:00:32]} 22. h4 {[%emt 0:01:33]} f6 {[%emt 0:00:17]} 23. hxg5 {[%emt 0:01:22]} hxg5 {[%emt 0:00:03]} 24. c5 {[%emt 0:00:04]} Nc7 {[%emt 0:01:18]} 25. Rh1 {[%emt 0:00:17]} Rh8 {[%emt 0:00:12]} 26. Raa1 {[%emt 0:00:03]} Rxh1 {[%emt 0:00:09]} 27. Rxh1 {[%emt 0:00:03]} Nb5 {[%emt 0:00:43]} 28. g4 {[%emt 0:00:27]} Rb8 {[%emt 0:00:43]} 29. Ra1 {[%emt 0:02:15]} Rh8 {[%emt 0:00:07]} 30. b4 {[%emt 0:00:12]} Kg6 {[%emt 0:00:13]} 31. Rh1 {[%emt 0:00:16]} Rb8 {[%emt 0:00:13]} 32. Nd2 {[%emt 0:00:44]} Re8 {[%emt 0:00:51]} 33. Nf3 {[%emt 0:00:20]} Ra8 {[%emt 0:00:06]} 34. Ra1 {[%emt 0:00:18]} Rh8 {[%emt 0:00:04]} 35. Rh1 {[%emt 0:00:03]} Ra8 {[%emt 0:00:02]} 36. Ra1 {[%emt 0:00:21]} Rh8 {[%emt 0:00:02]} 1/2-1/2

[Event "EWCCC Online Final 2020"]
[Site "Online"]
[Date "2020.12.21"]
[Round "2.5"]
[White "Muzychuk, Mariya"]
[Black "Dzagnidze, Nana"]
[Result "1/2-1/2"]
[ECO "B31"]
[WhiteElo "2544"]
[BlackElo "2524"]
[Annotator "ChessBase"]
[PlyCount "111"]
[EventDate "2020.12.19"]
[EventType "team-tourn"]
[EventCountry "NET"]
[SourceTitle "playchess.com"]
[Source "ChessBase"]
[SourceQuality "1"]
[TimeControl "900+5"]

1. e4 {[%emt 0:00:00]} c5 {[%emt 0:00:03]} 2. Nf3 {[%emt 0:00:03]} Nc6 {[%emt 0:00:01]} 3. Bb5 {[%emt 0:00:04]} g6 {[%emt 0:00:03]} 4. Bxc6 {[%emt 0:00:12]} dxc6 {[%emt 0:00:08]} 5. d3 {[%emt 0:00:09]} Qc7 {[%emt 0:00:07]} 6. Nbd2 {[%emt 0:02:57]} e5 {[%emt 0:01:17]} 7. Nc4 {[%emt 0:00:02]} f6 {[%emt 0:00:09]} 8. Bd2 {[%emt 0:00:26]} Be6 {[%emt 0:00:03]} 9. Qe2 {[%emt 0:00:15]} Nh6 {[%emt 0:00:25]} 10. a4 {[%emt 0:00:36]} Nf7 {[%emt 0:00:07]} 11. a5 {[%emt 0:00:07]} Nd6 {[%emt 0:01:29]} 12. O-O {[%emt 0:00:25]} Nxc4 {[%emt 0:02:31]} 13. dxc4 {[%emt 0:00:03]} Be7 {[%emt 0:00:01]} 14. Nh4 {[%emt 0:01:36]} O-O-O {[%emt 0:00:51]} 15. a6 {[%emt 0:02:36]} b6 {[%emt 0:00:14]} 16. f4 {[%emt 0:00:50]} Rd4 {[%emt 0:02:39]} 17. b3 {[%emt 0:00:25]} f5 {[%emt 0:00:08]} 18. exf5 {[%emt 0:00:28]} gxf5 {[%emt 0:00:04]} 19. Nf3 {[%emt 0:00:27]} Re4 {[%emt 0:01:10]} 20. Qf2 {[%emt 0:00:09]} exf4 {[%emt 0:00:02]} 21. Bc3 {[%emt 0:00:58]} Rg8 {[%emt 0:00:04]} 22. Rfe1 {[%emt 0:00:06]} Bd6 {[%emt 0:01:20]} 23. Rad1 {[%emt 0:00:02]} Qe7 {[%emt 0:00:42]} 24. Ne5 {[%emt 0:00:34]} Bd7 {[%emt 0:01:17]} 25. Nxd7 {[%emt 0:01:55]} Kxd7 {[%emt 0:00:08]} 26. Rxe4 {[%emt 0:00:17]} fxe4 {[%emt 0:00:10]} 27. Qxf4 {[%emt 0:00:05]} Rf8 {[%emt 0:01:15]} 28. Qh6 {[%emt 0:00:20]} e3 {[%emt 0:00:30]} 29. Re1 {[%emt 0:00:30]} e2 {[%emt 0:00:13]} 30. Qd2 {[%emt 0:00:11]} Qh4 {[%emt 0:00:04]} 31. g3 {[%emt 0:00:10]} Rf1+ {[%emt 0:00:09]} 32. Rxf1 {[%emt 0:00:10]} Qxh2+ {[%emt 0:00:04]} 33. Kxh2 {[%emt 0:00:02]} exf1=N+ {[%emt 0:00:02]} 34. Kh3 {[%emt 0:00:01]} Nxd2 {[%emt 0:00:01]} 35. Bxd2 {[%emt 0:00:02]} Ke6 {[%emt 0:00:07]} 36. Kg4 {[%emt 0:00:02]} Kf6 {[%emt 0:00:06]} 37. Bg5+ {[%emt 0:00:22]} Kg6 {[%emt 0:00:02]} 38. Bd8 {[%emt 0:00:01]} Bb8 {[%emt 0:00:04]} 39. c3 {[%emt 0:00:21]} h6 {[%emt 0:00:10]} 40. b4 {[%emt 0:00:09]} cxb4 {[%emt 0:00:03]} 41. cxb4 {[%emt 0:00:02]} b5 {[%emt 0:00:01]} 42. cxb5 {[%emt 0:00:10]} cxb5 {[%emt 0:00:02]} 43. Be7 {[%emt 0:00:01]} Bc7 {[%emt 0:00:17]} 44. Bc5 {[%emt 0:00:02]} Bb8 {[%emt 0:00:01]} 45. Kh4 {[%emt 0:00:01]} h5 {[%emt 0:00:12]} 46. Be3 {[%emt 0:00:05]} Kf5 {[%emt 0:00:07]} 47. Kxh5 {[%emt 0:00:02]} Ke4 {[%emt 0:00:02]} 48. Bc5 {[%emt 0:00:02]} Bxg3 {[%emt 0:00:04]} 49. Bxa7 {[%emt 0:00:06]} Kd5 {[%emt 0:00:02]} 50. Bc5 {[%emt 0:00:04]} Kc6 {[%emt 0:00:01]} 51. Kg4 {[%emt 0:00:02]} Be1 {[%emt 0:00:02]} 52. Kf5 {[%emt 0:00:05]} Bxb4 {[%emt 0:00:03]} 53. Bxb4 {[%emt 0:00:06]} Kb6 {[%emt 0:00:02]} 54. Ke5 {[%emt 0:00:01]} Kxa6 {[%emt 0:00:01]} 55. Bc3 {[%emt 0:00:01]} b4 {[%emt 0:00:02]} 56. Bxb4 {[%emt 0:00:01]} 1/2-1/2

[Event "EWCCC Online Final 2020"]
[Site "Online"]
[Date "2020.12.21"]
[Round "2.5"]
[White "Buksa, Nataliya"]
[Black "Paehtz, Elisabeth"]
[Result "1/2-1/2"]
[ECO "B06"]
[WhiteElo "2413"]
[BlackElo "2467"]
[Annotator "ChessBase"]
[PlyCount "112"]
[EventDate "2020.12.19"]
[EventType "team-tourn"]
[EventCountry "NET"]
[SourceTitle "playchess.com"]
[Source "ChessBase"]
[SourceQuality "1"]
[TimeControl "900+5"]

1. e4 {[%emt 0:00:00]} c5 {[%emt 0:00:03]} 2. c3 {[%emt 0:00:03]} d5 {[%emt 0:00:06]} 3. exd5 {[%emt 0:00:02]} Qxd5 {[%emt 0:00:01]} 4. d4 {[%emt 0:00:01]} g6 {[%emt 0:00:02]} 5. Nf3 {[%emt 0:00:02]} Bg7 {[%emt 0:00:11]} 6. Nbd2 {[%emt 0:00:05]} cxd4 {[%emt 0:00:04]} 7. Bc4 {[%emt 0:00:02]} Qd8 {[%emt 0:00:47]} 8. Nxd4 {[%emt 0:00:03]} Nf6 {[%emt 0:00:22]} 9. O-O {[%emt 0:00:02]} O-O {[%emt 0:00:02]} 10. Qe2 {[%emt 0:00:09]} Bg4 {[%emt 0:00:27]} 11. N2f3 {[%emt 0:01:08]} Qc7 {[%emt 0:00:44]} 12. h3 {[%emt 0:00:59]} Bxf3 {[%emt 0:00:11]} 13. Nxf3 {[%emt 0:00:02]} Nc6 {[%emt 0:00:05]} 14. a4 {[%emt 0:03:07]} Nh5 {[%emt 0:00:23]} 15. Qe4 {[%emt 0:00:44]} Rad8 {[%emt 0:00:25]} 16. Bg5 {[%emt 0:00:34]} Qb6 {[%emt 0:00:58]} 17. Qc2 {[%emt 0:00:38]} Qc5 {[%emt 0:00:29]} 18. Bb3 {[%emt 0:00:20]} Rc8 {[%emt 0:01:26]} 19. Be3 {[%emt 0:00:46]} Qa5 {[%emt 0:00:03]} 20. Rad1 {[%emt 0:00:19]} Qc7 {[%emt 0:00:09]} 21. Qe4 {[%emt 0:00:11]} a6 {[%emt 0:00:40]} 22. Rfe1 {[%emt 0:01:02]} Nf6 {[%emt 0:00:45]} 23. Qh4 {[%emt 0:00:02]} Na5 {[%emt 0:00:04]} 24. Ba2 {[%emt 0:01:40]} Rcd8 {[%emt 0:00:30]} 25. Qb4 {[%emt 0:00:19]} Nc6 {[%emt 0:00:09]} 26. Qb6 {[%emt 0:00:03]} Qc8 {[%emt 0:00:19]} 27. Ng5 {[%emt 0:00:18]} Rxd1 {[%emt 0:00:30]} 28. Rxd1 {[%emt 0:00:02]} h6 {[%emt 0:00:12]} 29. Nf3 {[%emt 0:00:13]} g5 {[%emt 0:00:50]} 30. Qb3 {[%emt 0:00:38]} Na5 {[%emt 0:00:48]} 31. Qb4 {[%emt 0:00:04]} Nc6 {[%emt 0:00:02]} 32. Qc4 {[%emt 0:00:04]} e6 {[%emt 0:00:25]} 33. Bb1 {[%emt 0:00:54]} Rd8 {[%emt 0:00:09]} 34. Rxd8+ {[%emt 0:00:04]} Qxd8 {[%emt 0:00:02]} 35. Qd3 {[%emt 0:00:01]} Qxd3 {[%emt 0:00:34]} 36. Bxd3 {[%emt 0:00:02]} Nd5 {[%emt 0:00:02]} 37. Bc5 {[%emt 0:00:06]} Bf8 {[%emt 0:00:04]} 38. Bxf8 {[%emt 0:00:29]} Kxf8 {[%emt 0:00:02]} 39. Be4 {[%emt 0:00:01]} Nb6 {[%emt 0:01:18]} 40. b3 {[%emt 0:01:38]} Ke7 {[%emt 0:00:29]} 41. Kf1 {[%emt 0:00:37]} Kd6 {[%emt 0:00:07]} 42. Ke2 {[%emt 0:00:02]} f5 {[%emt 0:00:19]} 43. Bxc6 {[%emt 0:00:03]} bxc6 {[%emt 0:00:10]} 44. g3 {[%emt 0:00:37]} c5 {[%emt 0:00:12]} 45. Nd2 {[%emt 0:00:08]} a5 {[%emt 0:00:46]} 46. Kd3 {[%emt 0:00:10]} Kd5 {[%emt 0:00:04]} 47. f4 {[%emt 0:00:12]} gxf4 {[%emt 0:00:38]} 48. gxf4 {[%emt 0:00:02]} e5 {[%emt 0:00:01]} 49. fxe5 {[%emt 0:00:12]} Kxe5 {[%emt 0:00:34]} 50. Ke3 {[%emt 0:00:01]} Nd5+ {[%emt 0:00:52]} 51. Kf3 {[%emt 0:00:01]} Nb6 {[%emt 0:00:09]} 52. h4 {[%emt 0:00:04]} h5 {[%emt 0:00:04]} 53. Ke3 {[%emt 0:00:07]} Nd5+ {[%emt 0:00:04]} 54. Kf3 {[%emt 0:00:01]} Nb6 {[%emt 0:00:02]} 55. Ke3 {[%emt 0:00:09]} Nd5+ {[%emt 0:00:07]} 56. Kf3 {[%emt 0:00:02]} Nb6 {[%emt 0:00:11]} 1/2-1/2

[Event "EWCCC Online Final 2020"]
[Site "Online"]
[Date "2020.12.21"]
[Round "3.5"]
[White "Mammadova, Gulnar"]
[Black "Kashlinskaya, Alina"]
[Result "1-0"]
[ECO "C00"]
[WhiteElo "2382"]
[BlackElo "2494"]
[Annotator "RC"]
[PlyCount "75"]
[EventDate "2020.12.19"]
[EventType "team-tourn"]
[EventCountry "NET"]
[SourceTitle "playchess.com"]
[Source "ChessBase"]
[SourceQuality "1"]
[TimeControl "900+5"]

1. e4 {[%emt 0:00:00]} e6 {[%emt 0:00:02]} 2. Qe2 {[%emt 0:00:05]} Nc6 {[%emt 0:00:05]} 3. c3 {[%emt 0:00:03]} e5 {[%emt 0:00:08]} 4. g3 {[%emt 0:00:05]} Nf6 {[%emt 0:00:02]} 5. Bg2 {[%emt 0:00:04]} d5 {[%emt 0:00:19]} 6. exd5 {[%emt 0:00:32]} Nxd5 {[%emt 0:00:03]} 7. d4 {[%emt 0:00:06]} Be6 {[%emt 0:01:39]} 8. dxe5 {[%emt 0:00:11]} Qd7 {[%emt 0:00:03]} 9. Nf3 {[%emt 0:00:04]} O-O-O {[%emt 0:00:45]} 10. O-O {[%emt 0:00:12]} Bh3 {[%emt 0:00:03]} 11. c4 {[%emt 0:01:11]} Bxg2 {[%emt 0:00:50]} 12. Kxg2 {[%emt 0:00:06]} Nb6 {[%emt 0:00:09]} 13. Be3 {[%emt 0:02:33]} h5 {[%emt 0:01:11]} 14. Bxb6 {[%emt 0:01:11]} axb6 {[%emt 0:00:04]} 15. Nc3 {[%emt 0:00:03]} Be7 {[%emt 0:01:31]} 16. Rad1 {[%emt 0:00:53]} Qe6 {[%emt 0:00:05]} 17. Nd5 {[%emt 0:00:05]} g5 {[%emt 0:01:51]} 18. Nxe7+ {[%emt 0:01:23]} Qxe7 {[%emt 0:00:03]} 19. Rxd8+ {[%emt 0:00:02]} Rxd8 {[%emt 0:00:10]} 20. Re1 {[%emt 0:00:47]} g4 {[%emt 0:01:00]} 21. Nh4 {[%emt 0:00:03]} Qe6 {[%emt 0:00:02]} 22. b3 {[%emt 0:00:20]} Rd4 {[%emt 0:00:19]} 23. Qe3 {[%emt 0:00:11]} Qd7 {[%emt 0:00:39]} 24. Qg5 {[%emt 0:00:48]} Rd2 {[%emt 0:00:07]} 25. Qxh5 {[%emt 0:00:35]} Kb8 {[%emt 0:01:00]} 26. e6 {[%emt 0:00:37]} fxe6 {[%emt 0:02:20]} 27. Qxg4 {[%emt 0:00:03]} Nd4 {[%emt 0:00:04]} 28. Nf3 {[%emt 0:00:41]} Qc6 {[%emt 0:00:14]} 29. Qe4 {[%emt 0:00:03]} Nxf3 {[%emt 0:00:39]} 30. Qxf3 {[%emt 0:00:04]} Qd6 {[%emt 0:00:16]} 31. h4 {[%emt 0:01:32]} Rxa2 {[%emt 0:00:03]} 32. h5 {[%emt 0:00:15]} Qd2 {[%emt 0:00:04]} 33. Qe3 {[%emt 0:00:14]} Qc2 {[%emt 0:00:20]} 34. h6 {[%emt 0:00:15]} Rb2 {[%emt 0:00:03]} 35. Re2 {[%emt 0:00:20]} Qxe2 {[%emt 0:00:17]} 36. Qxe2 {[%emt 0:00:02]} Rxe2 {[%emt 0:00:01]} 37. h7 {[%emt 0:00:01]} Rb2 {[%emt 0:00:01]} 38. h8=Q+ {[%emt 0:00:03]} 1-0

[Event "EWCCC Online Final 2020"]
[Site "Online"]
[Date "2020.12.21"]
[Round "4.2"]
[White "Kashlinskaya, Alina"]
[Black "Papp, Petra"]
[Result "1/2-1/2"]
[ECO "D80"]
[WhiteElo "2494"]
[BlackElo "2336"]
[Annotator "RC"]
[PlyCount "59"]
[EventDate "2020.12.19"]
[EventType "team-tourn"]
[EventCountry "NET"]
[SourceTitle "playchess.com"]
[Source "ChessBase"]
[SourceQuality "1"]
[TimeControl "900+5"]

1. d4 {[%emt 0:00:00]} Nf6 {[%emt 0:00:07]} 2. c4 {[%emt 0:00:03]} g6 {[%emt 0:00:02]} 3. Nc3 {[%emt 0:00:02]} d5 {[%emt 0:00:01]} 4. Bg5 {[%emt 0:00:02]} Ne4 {[%emt 0:00:06]} 5. Bf4 {[%emt 0:00:03]} Nxc3 {[%emt 0:00:06]} 6. bxc3 {[%emt 0:00:01]} Bg7 {[%emt 0:00:09]} 7. e3 {[%emt 0:00:03]} c5 {[%emt 0:00:05]} 8. Nf3 {[%emt 0:00:03]} cxd4 {[%emt 0:00:04]} 9. cxd4 {[%emt 0:00:03]} O-O {[%emt 0:00:13]} 10. Qd2 {[%emt 0:01:34]} Nc6 {[%emt 0:00:18]} 11. Rc1 {[%emt 0:00:38]} Bg4 {[%emt 0:00:46]} 12. Be2 {[%emt 0:02:08]} Rc8 {[%emt 0:00:31]} 13. cxd5 {[%emt 0:00:34]} Qxd5 {[%emt 0:00:06]} 14. h3 {[%emt 0:00:01]} Bf5 {[%emt 0:01:34]} 15. Rc5 {[%emt 0:01:50]} Qd8 {[%emt 0:03:35]} 16. O-O {[%emt 0:00:09]} b6 {[%emt 0:00:32]} 17. Rxf5 {[%emt 0:00:17]} gxf5 {[%emt 0:00:08]} 18. Ba6 {[%emt 0:00:01]} Qd7 {[%emt 0:01:33]} 19. Bxc8 {[%emt 0:00:47]} Rxc8 {[%emt 0:00:02]} 20. Rc1 {[%emt 0:00:02]} e6 {[%emt 0:00:27]} 21. Rc2 {[%emt 0:01:07]} Ne7 {[%emt 0:00:22]} 22. Be5 {[%emt 0:02:05]} Rxc2 {[%emt 0:00:14]} 23. Qxc2 {[%emt 0:00:03]} Qc6 {[%emt 0:00:06]} 24. Qd2 {[%emt 0:00:16]} Ng6 {[%emt 0:01:37]} 25. Bxg7 {[%emt 0:00:05]} Kxg7 {[%emt 0:00:02]} 26. Qb2 {[%emt 0:00:20]} Kg8 {[%emt 0:00:27]} 27. Qe2 {[%emt 0:01:12]} Kg7 {[%emt 0:00:57]} 28. Qb2 {[%emt 0:00:05]} Kg8 {[%emt 0:00:04]} 29. Qe2 {[%emt 0:00:06]} Kg7 {[%emt 0:00:01]} 30. Qb2 {[%emt 0:00:05]} 1/2-1/2